[Event "FIDE World Rapid-ch Open 2018"]
[White "Kevlishvili, Robby"]
[Black "Geller, Jakov"]
[Site "St. Petersburg"]
[Round "15.70"]
[Annotator "ChessBase"]
[Result "1-0"]
[Date "2018.12.28"]
[WhiteElo "2451"]
[BlackElo "2518"]
[PlyCount "103"]
[TimeControl "900+10"]

1. e4 {[%emt 0:0:0]} c5 {[%emt 0:0:0]} 2. Nf3 {[%emt 0:0:0]} e6 {[%emt 0:0:0]} 3. d4 {[%emt 0:0:0]} cxd4 {[%emt 0:0:0]} 4. Nxd4 {[%emt 0:0:2]} Nc6 {[%emt 0:0:0]} 5. Nc3 {[%emt 0:0:3]} Qc7 {[%emt 0:0:2]} 6. Be3 {[%emt 0:0:59]
} a6 {[%emt 0:0:3]} 7. Be2 {[%emt 0:0:4]} Nf6 {[%emt 0:0:3]
} 8. a3 {[%emt 0:0:2]} d6 {[%emt 0:1:44]} 9. f4 {[%emt 0:0:9]} Be7 {[%emt 0:0:8]
} 10. g4 {[%emt 0:0:5]} h6 {[%emt 0:1:26]} 11. h4 {[%emt 0:0:0]} d5 {[%emt 0:4:5]} 12. e5 {[%emt 0:0:38]} Ne4 {[%emt 0:0:2]} 13. Nxe4 {[%emt 0:0:2]} dxe4 {[%emt 0:0:2]} 14. Qd2 {[%emt 0:0:8]} Bd7 {[%emt 0:0:0]} 15. 0-0-0 {[%emt 0:0:13]} Nxd4 {[%emt 0:1:12]} 16. Bxd4 {[%emt 0:0:0]} Rc8 {[%emt 0:0:58]} 17. Kb1 {[%emt 0:0:10]} Ba4 {[%emt 0:0:38]} 18. Rc1 {[%emt 0:0:11]} Bc6 {[%emt 0:0:1]} 19. Qe3 {[%emt 0:0:6]} b5 {[%emt 0:0:0]} 20. f5 {[%emt 0:0:11]} Bd5 {[%emt 0:0:16]} 21. f6 {[%emt 0:0:10]} gxf6 {[%emt 0:0:8]} 22. exf6 {[%emt 0:0:14]} Bc5 {[%emt 0:0:47]} 23. c3 {[%emt 0:0:35]
} e5 {[%emt 0:1:16]} 24. Bxc5 {[%emt 0:0:13]} Qxc5 {[%emt 0:0:0]} 25. Qxc5 {[%emt 0:2:1]} Rxc5 {[%emt 0:0:2]} 26. Rhd1 {[%emt 0:0:1]} e3 {[%emt 0:0:7]} 27. b4 {[%emt 0:0:31]} Be4+ {[%emt 0:0:8]} 28. Kb2 {[%emt 0:0:1]
} Rc6 {[%emt 0:1:3]} 29. c4 {[%emt 0:0:1]} Rxf6 {[%emt 0:0:0]} 30. Rc3 {[%emt 0:0:15]} bxc4 {[%emt 0:2:1]} 31. Rxe3 {[%emt 0:1:25]} Rf4 {[%emt 0:0:1]} 32. Rf1 {[%emt 0:0:8]} Rxf1 {[%emt 0:0:53]} 33. Bxf1 {[%emt 0:0:1]
} Bd3 {[%emt 0:0:1]} 34. Bxd3 {[%emt 0:0:8]} cxd3 {[%emt 0:0:0]} 35. Rxe5+ {[%emt 0:0:1]} Kd7 {[%emt 0:0:15]} 36. Kc3 {[%emt 0:0:7]
} Rg8 {[%emt 0:0:20]} 37. g5 {[%emt 0:0:18]} hxg5 {[%emt 0:0:28]} 38. Rxg5 {[%emt 0:0:1]
} Rc8+ {[%emt 0:1:16]} 39. Kxd3 {[%emt 0:0:2]} Ke6 {[%emt 0:0:0]} 40. Rc5 {[%emt 0:0:15]} Rg8 {[%emt 0:0:16]} 41. Rc6+ {[%emt 0:0:13]} Ke5 {[%emt 0:0:1]} 42. Rxa6 {[%emt 0:0:3]} Rg3+ {[%emt 0:0:4]} 43. Ke2 {[%emt 0:0:12]
} f5 {[%emt 0:0:2]} 44. h5 {[%emt 0:0:4]} Ke4 {[%emt 0:0:30]
} 45. h6 {[%emt 0:0:20]} Rg2+ {[%emt 0:0:2]} 46. Kf1 {[%emt 0:0:1]} Rh2 {[%emt 0:0:1]
} 47. Kg1 {[%emt 0:0:5]} Rh4 {[%emt 0:0:4]} 48. b5 {[%emt 0:0:0]} f4 {[%emt 0:0:2]} 49. b6 {[%emt 0:0:42]} Kf3 {[%emt 0:0:9]} 50. b7 {[%emt 0:0:23]} Rg4+ {[%emt 0:0:1]} 51. Kf1 {[%emt 0:0:1]} Rh4 {[%emt 0:0:0]} 52. Rg6 {[%emt 0:0:6]} 1-0

[Event "FIDE World Rapid-ch Open 2018"]
[White "Zhigalko, Andrey"]
[Black "Makoveev, Ilya"]
[Site "St. Petersburg"]
[Round "15.71"]
[Annotator "ChessBase"]
[Result "0-1"]
[Date "2018.12.28"]
[WhiteElo "2545"]
[BlackElo "2257"]
[PlyCount "96"]
[TimeControl "900+10"]

1. e4 {[%emt 0:0:0]} c5 {[%emt 0:0:0]} 2. Nf3 {[%emt 0:0:0]} d6 {[%emt 0:0:0]} 3. d4 {[%emt 0:0:0]} cxd4 {[%emt 0:0:0]} 4. Qxd4 {[%emt 0:0:1]} Nf6 {[%emt 0:0:0]} 5. Bg5 {[%emt 0:0:12]} Nc6 {[%emt 0:1:9]} 6. Bb5 {[%emt 0:0:3]
} Nd7 {[%emt 0:0:23]} 7. Qc3 {[%emt 0:1:31]} Qb6 {[%emt 0:0:0]} 8. Be2 {[%emt 0:1:40]} Nc5 {[%emt 0:2:6]} 9. Nbd2 {[%emt 0:0:45]} Qb4 {[%emt 0:3:6]} 10. Qxb4 {[%emt 0:2:12]} Nxb4 {[%emt 0:0:2]} 11. 0-0 {[%emt 0:1:10]
} Ne6 {[%emt 0:2:52]} 12. c3 {[%emt 0:1:44]} Nxg5 {[%emt 0:0:0]} 13. cxb4 {[%emt 0:0:29]} Nxf3+ {[%emt 0:1:18]} 14. Nxf3 {[%emt 0:0:2]} e6 {[%emt 0:2:48]} 15. Rac1 {[%emt 0:0:32]} Be7 {[%emt 0:0:9]} 16. Rc7 {[%emt 0:1:24]
} Bd8 {[%emt 0:0:10]} 17. Bb5+ {[%emt 0:0:44]} Kf8 {[%emt 0:0:0]} 18. Rc2 {[%emt 0:0:53]} a6 {[%emt 0:0:3]} 19. Rfc1 {[%emt 0:0:26]} Ke7 {[%emt 0:0:44]} 20. Rxc8 {[%emt 0:0:32]} Rxc8 {[%emt 0:0:2]} 21. Rxc8 {[%emt 0:0:1]
} axb5 {[%emt 0:0:1]} 22. Rb8 {[%emt 0:0:58]} Kd7 {[%emt 0:0:0]} 23. Rxb7+ {[%emt 0:0:43]} Kc6 {[%emt 0:0:1]} 24. Rb8 {[%emt 0:0:48]} e5 {[%emt 0:0:51]} 25. Kf1 {[%emt 0:0:43]} Rf8 {[%emt 0:0:13]} 26. Ke2 {[%emt 0:0:53]
} Be7 {[%emt 0:0:0]} 27. Rxf8 {[%emt 0:0:3]} Bxf8 {[%emt 0:0:0]} 28. Kd3 {[%emt 0:0:45]} f6 {[%emt 0:0:5]} 29. a3 {[%emt 0:0:5]} g6 {[%emt 0:0:19]} 30. g4 {[%emt 0:0:12]} d5 {[%emt 0:0:24]} 31. g5 {[%emt 0:0:0]} f5 {[%emt 0:0:6]} 32. Nxe5+ {[%emt 0:0:4]} Kd6 {[%emt 0:0:1]} 33. Nf7+ {[%emt 0:0:18]} Ke7 {[%emt 0:0:19]} 34. Ne5 {[%emt 0:0:10]} Kd6 {[%emt 0:0:1]
} 35. f4 {[%emt 0:0:19]} fxe4+ {[%emt 0:0:39]} 36. Kd4 {[%emt 0:0:7]
} Bg7 {[%emt 0:0:10]} 37. b3 {[%emt 0:0:8]} Ke6 {[%emt 0:0:0]} 38. a4 {[%emt 0:0:13]} bxa4 {[%emt 0:0:4]} 39. bxa4 {[%emt 0:0:1]} Kf5 {[%emt 0:0:2]} 40. Kxd5 {[%emt 0:0:13]} Bxe5 {[%emt 0:0:5]} 41. fxe5 {[%emt 0:0:16]
} e3 {[%emt 0:0:0]} 42. a5 {[%emt 0:0:13]} e2 {[%emt 0:0:2]} 43. a6 {[%emt 0:0:2]} e1=Q {[%emt 0:0:2]} 44. b5 {[%emt 0:0:5]} Qxe5+ {[%emt 0:0:7]
} 45. Kc6 {[%emt 0:0:1]} Qb8 {[%emt 0:0:12]} 46. b6 {[%emt 0:0:0]} Qa8+ {[%emt 0:0:3]} 47. Kb5 {[%emt 0:0:6]} Kxg5 {[%emt 0:0:9]} 48. b7 {[%emt 0:0:1]} Qa7 {[%emt 0:0:2]} 0-1

[Event "FIDE World Rapid-ch Open 2018"]
[White "Novikov, Stanislav"]
[Black "Kabanov, Nikolai"]
[Site "St. Petersburg"]
[Round "15.72"]
[Annotator "ChessBase"]
[Result "1-0"]
[Date "2018.12.28"]
[WhiteElo "2540"]
[BlackElo "2450"]
[PlyCount "77"]
[TimeControl "900+10"]

1. e4 {[%emt 0:0:0]} e5 {[%emt 0:0:0]} 2. Nf3 {[%emt 0:0:0]} d6 {[%emt 0:0:0]} 3. Bc4 {[%emt 0:0:14]} Nf6 {[%emt 0:0:11]} 4. d3 {[%emt 0:2:16]} Be7 {[%emt 0:0:36]} 5. Nc3 {[%emt 0:0:36]} c6 {[%emt 0:0:11]} 6. Bb3 {[%emt 0:0:0]} a5 {[%emt 0:0:22]} 7. a3 {[%emt 0:0:11]} Na6 {[%emt 0:0:8]} 8. Ne2 {[%emt 0:0:14]} Nc5 {[%emt 0:0:38]} 9. Ba2 {[%emt 0:0:1]} 0-0 {[%emt 0:0:0]} 10. 0-0 {[%emt 0:0:10]} Nh5 {[%emt 0:1:38]} 11. Be3 {[%emt 0:0:27]} Qc7 {[%emt 0:0:43]} 12. Nc3 {[%emt 0:1:42]} Nf6 {[%emt 0:0:26]} 13. h3 {[%emt 0:0:0]} b5 {[%emt 0:0:52]} 14. Ne2 {[%emt 0:0:28]} Ne6 {[%emt 0:0:49]} 15. Ng3 {[%emt 0:0:6]} d5 {[%emt 0:0:24]} 16. Re1 {[%emt 0:2:30]} dxe4 {[%emt 0:0:4]
} 17. dxe4 {[%emt 0:0:3]} Rd8 {[%emt 0:0:2]} 18. Qe2 {[%emt 0:0:8]
} h6 {[%emt 0:3:29]} 19. Rad1 {[%emt 0:0:14]} Ba6 {[%emt 0:0:0]} 20. Nh4 {[%emt 0:1:40]} b4 {[%emt 0:1:21]} 21. Qf3 {[%emt 0:0:11]} bxa3 {[%emt 0:1:20]} 22. bxa3 {[%emt 0:0:3]} Rxd1 {[%emt 0:0:58]} 23. Rxd1 {[%emt 0:0:2]
} Rd8 {[%emt 0:0:2]} 24. Rb1 {[%emt 0:0:52]} Nd4 {[%emt 0:0:0]} 25. Bxd4 {[%emt 0:0:10]} exd4 {[%emt 0:0:2]} 26. Nhf5 {[%emt 0:0:15]} d3 {[%emt 0:1:7]} 27. cxd3 {[%emt 0:0:14]} Bxd3 {[%emt 0:0:35]} 28. Rd1 {[%emt 0:0:25]
} Bc2 {[%emt 0:0:9]} 29. Nxe7+ {[%emt 0:0:47]} Qxe7 {[%emt 0:0:0]} 30. Rxd8+ {[%emt 0:0:2]} Qxd8 {[%emt 0:0:1]} 31. e5 {[%emt 0:0:2]
} Nd5 {[%emt 0:0:10]} 32. Ne2 {[%emt 0:0:12]} Bd1 {[%emt 0:0:8]} 33. Bb3 {[%emt 0:0:33]
} Bxe2 {[%emt 0:0:31]} 34. Qxe2 {[%emt 0:0:1]} Qg5 {[%emt 0:0:0]} 35. e6 {[%emt 0:0:43]} Qc1+ {[%emt 0:0:26]} 36. Kh2 {[%emt 0:0:1]} fxe6 {[%emt 0:0:5]} 37. Qxe6+ {[%emt 0:0:2]} Kh8 {[%emt 0:0:1]} 38. Qc8+ {[%emt 0:0:28]} Kh7 {[%emt 0:0:2]} 39. Bxd5 {[%emt 0:0:3]} 1-0

[Event "FIDE World Rapid-ch Open 2018"]
[White "Khismatullin, Denis"]
[Black "Sanikidze, Tornike"]
[Site "St. Petersburg"]
[Round "15.73"]
[Annotator "ChessBase"]
[Result "0-1"]
[Date "2018.12.28"]
[WhiteElo "2621"]
[BlackElo "2507"]
[PlyCount "98"]
[TimeControl "900+10"]

1. c4 {[%emt 0:0:0]} e6 {[%emt 0:0:0]} 2. Nf3 {[%emt 0:0:0]} Nf6 {[%emt 0:0:0]
} 3. Nc3 {[%emt 0:0:0]} d5 {[%emt 0:0:0]} 4. e3 {[%emt 0:0:0]} a6 {[%emt 0:0:25]} 5. b3 {[%emt 0:0:4]} Be7 {[%emt 0:0:21]} 6. Bb2 {[%emt 0:0:14]
} 0-0 {[%emt 0:0:3]} 7. Rc1 {[%emt 0:0:57]} Ne4 {[%emt 0:0:0]} 8. h4 {[%emt 0:0:55]} Bf6 {[%emt 0:0:22]} 9. d4 {[%emt 0:0:26]} Nxc3 {[%emt 0:0:28]
} 10. Bxc3 {[%emt 0:0:3]} Nd7 {[%emt 0:2:3]} 11. Qc2 {[%emt 0:0:47]
} Re8 {[%emt 0:0:21]} 12. Bd3 {[%emt 0:4:0]} Nf8 {[%emt 0:0:0]} 13. Ng5 {[%emt 0:2:12]} g6 {[%emt 0:0:2]} 14. Nf3 {[%emt 0:0:2]} b6 {[%emt 0:1:27]
} 15. h5 {[%emt 0:0:3]} Bb7 {[%emt 0:0:12]} 16. hxg6 {[%emt 0:0:0]} hxg6 {[%emt 0:0:8]} 17. e4 {[%emt 0:0:46]} c5 {[%emt 0:0:45]} 18. dxc5 {[%emt 0:3:51]} d4 {[%emt 0:0:48]} 19. Bb4 {[%emt 0:0:27]} Qe7 {[%emt 0:0:10]
} 20. e5 {[%emt 0:0:27]} Bg7 {[%emt 0:0:10]} 21. Be4 {[%emt 0:0:0]} Bxe4 {[%emt 0:1:56]} 22. Qxe4 {[%emt 0:0:2]} Nd7 {[%emt 0:0:10]} 23. Ke2 {[%emt 0:1:27]} Nxc5 {[%emt 0:0:46]} 24. Qxd4 {[%emt 0:0:3]} Nxb3 {[%emt 0:0:17]
} 25. axb3 {[%emt 0:0:37]} Qxb4 {[%emt 0:0:2]} 26. Qe3 {[%emt 0:0:18]
} a5 {[%emt 0:0:39]} 27. Rh4 {[%emt 0:0:52]} a4 {[%emt 0:0:13]
} 28. bxa4 {[%emt 0:0:18]} Rxa4 {[%emt 0:0:2]} 29. Kf1 {[%emt 0:0:7]} Qb2 {[%emt 0:0:23]} 30. Kg1 {[%emt 0:0:17]} Rea8 {[%emt 0:1:19]} 31. Rd4 {[%emt 0:0:19]
} Ra3 {[%emt 0:0:9]} 32. Qd2 {[%emt 0:0:23]} Qxd2 {[%emt 0:0:0]} 33. Nxd2 {[%emt 0:0:2]} Bxe5 {[%emt 0:0:3]} 34. Rd7 {[%emt 0:0:2]} Ra1 {[%emt 0:0:15]} 35. Rf1 {[%emt 0:0:2]} R8a2 {[%emt 0:0:43]} 36. Nf3 {[%emt 0:0:10]
} Bf6 {[%emt 0:0:47]} 37. Rb7 {[%emt 0:0:23]} Rxf1+ {[%emt 0:0:0]} 38. Kxf1 {[%emt 0:0:2]} Rb2 {[%emt 0:0:1]} 39. g4 {[%emt 0:0:6]} g5 {[%emt 0:0:2]} 40. Rc7 {[%emt 0:0:9]} Rc2 {[%emt 0:1:49]} 41. Rc6 {[%emt 0:0:6]
} Be7 {[%emt 0:0:1]} 42. Rxb6 {[%emt 0:0:38]} Bc5 {[%emt 0:0:0]} 43. Rb8+ {[%emt 0:0:8]} Kg7 {[%emt 0:0:1]} 44. Nxg5 {[%emt 0:0:3]} Rxf2+ {[%emt 0:0:6]} 45. Ke1 {[%emt 0:0:2]} Rf4 {[%emt 0:0:13]} 46. Rb5 {[%emt 0:0:26]
} Be7 {[%emt 0:1:42]} 47. Nh3 {[%emt 0:0:12]} Rxg4 {[%emt 0:0:0]} 48. c5 {[%emt 0:0:11]} Re4+ {[%emt 0:0:5]} 49. Kd2 {[%emt 0:0:13]} Re5 {[%emt 0:0:4]} 0-1

[Event "FIDE World Rapid-ch Open 2018"]
[White "Kovalev, Vladislav"]
[Black "Lobanov, Sergei"]
[Site "St. Petersburg"]
[Round "15.74"]
[Annotator "ChessBase"]
[Result "1/2-1/2"]
[Date "2018.12.28"]
[WhiteElo "2683"]
[BlackElo "2526"]
[PlyCount "148"]
[TimeControl "900+10"]

1. e4 {[%emt 0:0:0]} c6 {[%emt 0:1:4]} 2. Nc3 {[%emt 0:0:1]} d5 {[%emt 0:0:0]} 3. Nf3 {[%emt 0:0:1]} Bg4 {[%emt 0:0:2]} 4. h3 {[%emt 0:0:1]} Bxf3 {[%emt 0:0:2]} 5. Qxf3 {[%emt 0:0:1]} e6 {[%emt 0:0:1]} 6. Be2 {[%emt 0:0:1]
} Nd7 {[%emt 0:0:1]} 7. 0-0 {[%emt 0:0:12]} g6 {[%emt 0:0:3]
} 8. d4 {[%emt 0:0:9]} Bg7 {[%emt 0:0:20]} 9. Rd1 {[%emt 0:0:6]} Ne7 {[%emt 0:0:57]
} 10. Bf1 {[%emt 0:0:22]} 0-0 {[%emt 0:0:9]} 11. Ne2 {[%emt 0:0:0]} Qb6 {[%emt 0:1:56]} 12. c3 {[%emt 0:0:9]} c5 {[%emt 0:4:29]} 13. exd5 {[%emt 0:0:31]} Nxd5 {[%emt 0:0:32]} 14. g3 {[%emt 0:0:38]} cxd4 {[%emt 0:1:5]
} 15. Nxd4 {[%emt 0:0:3]} Rac8 {[%emt 0:0:1]} 16. Bg2 {[%emt 0:2:59]
} Ne5 {[%emt 0:0:37]} 17. Qe2 {[%emt 0:0:8]} Nc4 {[%emt 0:0:0]} 18. h4 {[%emt 0:1:16]} Rfd8 {[%emt 0:1:46]} 19. h5 {[%emt 0:0:16]} Rd7 {[%emt 0:0:25]} 20. hxg6 {[%emt 0:1:21]} hxg6 {[%emt 0:0:2]} 21. Nf3 {[%emt 0:1:51]
} Bf6 {[%emt 0:2:1]} 22. Re1 {[%emt 0:0:24]} Kg7 {[%emt 0:0:0]} 23. Qc2 {[%emt 0:0:49]} Qc7 {[%emt 0:0:23]} 24. Qe4 {[%emt 0:2:4]} b5 {[%emt 0:0:13]} 25. a3 {[%emt 0:1:6]} a5 {[%emt 0:0:6]} 26. Bf1 {[%emt 0:0:0]} Qb6 {[%emt 0:0:27]} 27. Nd4 {[%emt 0:0:16]} Nd6 {[%emt 0:0:55]} 28. Qf3 {[%emt 0:0:41]} Bxd4 {[%emt 0:0:23]} 29. cxd4 {[%emt 0:0:2]} Qxd4 {[%emt 0:0:10]
} 30. Rb1 {[%emt 0:0:54]} Qf6 {[%emt 0:0:7]} 31. Qe2 {[%emt 0:0:0]} Qf5 {[%emt 0:0:3]} 32. b3 {[%emt 0:0:43]} Kg8 {[%emt 0:0:18]} 33. Rb2 {[%emt 0:0:50]} b4 {[%emt 0:0:13]} 34. axb4 {[%emt 0:0:1]} axb4 {[%emt 0:0:1]
} 35. Rd2 {[%emt 0:0:9]} Nc3 {[%emt 0:0:19]} 36. Qe3 {[%emt 0:0:0]} Rcd8 {[%emt 0:0:6]} 37. Rd4 {[%emt 0:0:10]} Nd5 {[%emt 0:0:15]} 38. Qh6 {[%emt 0:0:11]} Qf6 {[%emt 0:0:6]} 39. Rh4 {[%emt 0:0:30]} Nf5 {[%emt 0:0:5]
} 40. Qh7+ {[%emt 0:0:1]} Kf8 {[%emt 0:0:1]} 41. Rg4 {[%emt 0:0:18]
} Qg7 {[%emt 0:0:13]} 42. Qh1 {[%emt 0:0:3]} Kg8 {[%emt 0:0:0]} 43. Bg5 {[%emt 0:0:12]} Rc8 {[%emt 0:0:3]} 44. Bc4 {[%emt 0:0:1]} Nf6 {[%emt 0:0:11]} 45. Rf4 {[%emt 0:0:31]} Nh5 {[%emt 0:0:4]} 46. Rfe4 {[%emt 0:0:9]
} Nhxg3 {[%emt 0:0:17]} 47. fxg3 {[%emt 0:0:2]} Nxg3 {[%emt 0:0:0]} 48. Qf3 {[%emt 0:0:11]} Nxe4 {[%emt 0:0:2]} 49. Rxe4 {[%emt 0:0:1]
} Qc3 {[%emt 0:0:38]} 50. Re3 {[%emt 0:0:19]} Qa1+ {[%emt 0:0:5]} 51. Kg2 {[%emt 0:0:15]
} Rd2+ {[%emt 0:0:11]} 52. Re2 {[%emt 0:0:13]} Rxe2+ {[%emt 0:0:0]} 53. Bxe2 {[%emt 0:0:10]} Qe5 {[%emt 0:0:13]} 54. Bf6 {[%emt 0:0:11]} Qd5 {[%emt 0:0:5]} 55. Bc4 {[%emt 0:0:10]} Qxf3+ 56. Kxf3 {[%emt 0:0:0]} Kf8 {[%emt 0:0:18]} 57. Ke4 {[%emt 0:0:5]} Rb8 {[%emt 0:0:14]} 58. Kd4 {[%emt 0:0:10]
} Ke8 {[%emt 0:0:13]} 59. Kc5 {[%emt 0:0:2]} Ra8 {[%emt 0:0:0]} 60. Kxb4 {[%emt 0:0:7]} Kd7 {[%emt 0:0:9]} 61. Kc5 {[%emt 0:0:2]} Rc8+ {[%emt 0:0:7]} 62. Kd4 {[%emt 0:0:7]} Kc6 {[%emt 0:0:11]} 63. b4 {[%emt 0:0:1]
} Rb8 {[%emt 0:0:4]} 64. Be7 {[%emt 0:0:12]} Rb7 {[%emt 0:0:0]} 65. Bc5 {[%emt 0:0:12]} g5 {[%emt 0:0:16]} 66. Ke5 {[%emt 0:0:15]} Rd7 {[%emt 0:0:10]} 67. Be3 {[%emt 0:0:5]} Rb7 {[%emt 0:0:14]} 68. Bd2 {[%emt 0:0:17]
} g4 {[%emt 0:0:0]} 69. Kf4 {[%emt 0:0:11]} Rd7 {[%emt 0:0:0]} 70. Be3 {[%emt 0:0:11]} Rb7 {[%emt 0:0:25]} 71. Bc5 {[%emt 0:0:1]} f5 {[%emt 0:0:6]} 72. Bxe6 {[%emt 0:0:12]} Rb5 {[%emt 0:0:5]} 73. Bf8 {[%emt 0:0:24]
} Rb8 {[%emt 0:0:1]} 74. Bc5 {[%emt 0:0:17]} Rb5 {[%emt 0:0:0]} 1/2-1/2

[Event "FIDE World Rapid-ch Open 2018"]
[White "Tissir, Mohamed"]
[Black "Frolyanov, Dmitry"]
[Site "St. Petersburg"]
[Round "15.75"]
[Annotator "ChessBase"]
[Result "1/2-1/2"]
[Date "2018.12.28"]
[WhiteElo "2387"]
[BlackElo "2517"]
[PlyCount "71"]
[TimeControl "900+10"]

1. e4 {[%emt 0:0:0]} c5 {[%emt 0:0:0]} 2. Nc3 {[%emt 0:0:0]} Nc6 {[%emt 0:0:0]
} 3. Bb5 {[%emt 0:0:0]} Nd4 {[%emt 0:0:0]} 4. Bc4 {[%emt 0:0:0]} e6 {[%emt 0:0:0]} 5. Nge2 {[%emt 0:0:0]} a6 {[%emt 0:0:2]} 6. Nxd4 {[%emt 0:0:0]} cxd4 {[%emt 0:0:4]} 7. Ne2 {[%emt 0:0:0]} b5 {[%emt 0:0:15]
} 8. Bb3 {[%emt 0:0:1]} Bc5 {[%emt 0:0:9]} 9. 0-0 {[%emt 0:0:0]} Ne7 {[%emt 0:0:5]} 10. d3 {[%emt 0:0:1]} 0-0 {[%emt 0:0:7]} 11. a4 {[%emt 0:0:15]} b4 {[%emt 0:0:15]} 12. Ng3 {[%emt 0:0:2]} Bb7 {[%emt 0:0:0]} 13. Qh5 {[%emt 0:0:2]} Rc8 {[%emt 0:0:37]} 14. Bd2 {[%emt 0:1:14]} Kh8 {[%emt 0:0:36]} 15. Rae1 {[%emt 0:1:50]} f5 {[%emt 0:0:15]} 16. f3 {[%emt 0:0:17]
} a5 {[%emt 0:0:48]} 17. Kh1 {[%emt 0:0:17]} Bd6 {[%emt 0:0:0]} 18. Ne2 {[%emt 0:0:23]} Qb6 {[%emt 0:1:49]} 19. Bf4 {[%emt 0:1:46]} Ng6 {[%emt 0:0:40]} 20. Bxd6 {[%emt 0:1:9]} Qxd6 {[%emt 0:0:2]} 21. Qg5 {[%emt 0:0:0]
} Rc5 {[%emt 0:1:6]} 22. Qg3 {[%emt 0:0:23]} f4 {[%emt 0:0:0]} 23. Qf2 {[%emt 0:0:8]} e5 {[%emt 0:0:5]} 24. Rg1 {[%emt 0:4:24]} Rcc8 {[%emt 0:0:9]} 25. g3 {[%emt 0:1:48]} fxg3 {[%emt 0:0:16]} 26. Rxg3 {[%emt 0:0:7]
} Nf4 {[%emt 0:2:33]} 27. Reg1 {[%emt 0:0:9]} g6 {[%emt 0:0:0]} 28. Nxf4 {[%emt 0:1:0]} Rxf4 {[%emt 0:0:4]} 29. Rg4 {[%emt 0:0:5]} Rcf8 {[%emt 0:0:18]} 30. Qh4 {[%emt 0:0:30]} Rxg4 {[%emt 0:0:32]} 31. Qxg4 {[%emt 0:0:27]
} Qf6 {[%emt 0:0:16]} 32. Rf1 {[%emt 0:0:34]} d6 {[%emt 0:0:0]} 33. Qe6 {[%emt 0:0:24]} Bc6 {[%emt 0:0:44]} 34. Qxf6+ {[%emt 0:0:13]} Rxf6 35. Kg2 Kg7 {[%emt 0:0:29]} 36. Rc1 {[%emt 0:0:17]} 1/2-1/2

[Event "FIDE World Rapid-ch Open 2018"]
[White "Shinkevich, Vitaly"]
[Black "Usmanov, Vasily"]
[Site "St. Petersburg"]
[Round "15.76"]
[Annotator "ChessBase"]
[Result "1-0"]
[Date "2018.12.28"]
[WhiteElo "2439"]
[BlackElo "2450"]
[PlyCount "57"]
[TimeControl "900+10"]

1. d4 {[%emt 0:0:0]} Nf6 {[%emt 0:0:0]} 2. Nf3 {[%emt 0:0:0]} e6 {[%emt 0:0:0]
} 3. c4 {[%emt 0:0:0]} Bb4+ {[%emt 0:0:0]} 4. Nbd2 {[%emt 0:0:0]} 0-0 {[%emt 0:0:0]} 5. a3 {[%emt 0:0:0]} Be7 {[%emt 0:0:0]} 6. e3 {[%emt 0:0:12]} b6 {[%emt 0:0:9]} 7. Bd3 {[%emt 0:0:9]} Bb7 {[%emt 0:0:0]} 8. 0-0 {[%emt 0:0:12]} c5 {[%emt 0:0:3]} 9. b3 {[%emt 0:0:13]} Nc6 {[%emt 0:0:29]
} 10. Bb2 {[%emt 0:0:15]} cxd4 {[%emt 0:0:5]} 11. exd4 {[%emt 0:0:3]
} d5 {[%emt 0:0:2]} 12. Qe2 {[%emt 0:0:7]} Re8 {[%emt 0:0:0]} 13. Rad1 {[%emt 0:0:30]} Rc8 {[%emt 0:0:4]} 14. Rfe1 {[%emt 0:0:6]} Bf8 {[%emt 0:0:2]} 15. Qe3 {[%emt 0:0:59]} g6 {[%emt 0:1:36]} 16. h3 {[%emt 0:1:1]
} Bg7 {[%emt 0:0:8]} 17. Ba1 {[%emt 0:0:4]} Qd6 {[%emt 0:0:0]} 18. c5 {[%emt 0:0:7]} bxc5 {[%emt 0:0:29]} 19. dxc5 {[%emt 0:0:2]} Qf8 {[%emt 0:0:2]} 20. b4 {[%emt 0:0:43]} a6 {[%emt 0:2:1]} 21. Nb3 {[%emt 0:2:13]
} e5 {[%emt 0:3:37]} 22. Nxe5 {[%emt 0:3:27]} d4 {[%emt 0:0:0]} 23. Bxd4 {[%emt 0:0:21]} Nd5 {[%emt 0:3:35]} 24. Qg3 {[%emt 0:0:6]} Nxd4 {[%emt 0:0:4]} 25. Nxd4 {[%emt 0:0:3]} f5 {[%emt 0:1:48]} 26. Bc4 {[%emt 0:0:39]
} f4 {[%emt 0:0:3]} 27. Qf3 {[%emt 0:0:30]} Rxc5 {[%emt 0:0:0]} 28. bxc5 {[%emt 0:0:9]} Qxc5 {[%emt 0:0:3]} 29. Nb3 {[%emt 0:0:15]} 1-0

[Event "FIDE World Rapid-ch Open 2018"]
[White "Sokolin, Leonid"]
[Black "Zablotsky, Sergei"]
[Site "St. Petersburg"]
[Round "15.77"]
[Annotator "ChessBase"]
[Result "0-1"]
[Date "2018.12.28"]
[WhiteElo "2508"]
[BlackElo "2511"]
[PlyCount "86"]
[TimeControl "900+10"]

1. e4 {[%emt 0:0:0]} d6 {[%emt 0:0:0]} 2. d4 {[%emt 0:0:0]} Nf6 {[%emt 0:0:0]} 3. Nc3 {[%emt 0:0:0]} e5 {[%emt 0:0:1]} 4. Nf3 {[%emt 0:0:0]} Nbd7 {[%emt 0:0:2]} 5. Bc4 {[%emt 0:0:0]} Be7 {[%emt 0:0:2]} 6. 0-0 {[%emt 0:0:2]
} 0-0 {[%emt 0:0:2]} 7. Re1 {[%emt 0:0:1]} c6 8. a4 exd4 {[%emt 0:0:4]
} 9. Qxd4 {[%emt 0:0:10]} Ne5 {[%emt 0:0:3]} 10. Be2 {[%emt 0:0:0]} Qc7 {[%emt 0:0:27]} 11. Bf4 {[%emt 0:0:29]} Nfd7 {[%emt 0:0:3]} 12. Rad1 {[%emt 0:0:51]} a6 {[%emt 0:0:40]} 13. Bg3 {[%emt 0:2:2]} b5 {[%emt 0:0:0]} 14. b4 {[%emt 0:0:44]} Re8 {[%emt 0:2:2]} 15. Nh4 {[%emt 0:2:29]} Bf6 {[%emt 0:8:17]} 16. Qd2 {[%emt 0:4:55]} Nb6 {[%emt 0:0:4]} 17. Qxd6 {[%emt 0:1:2]
} Qxd6 {[%emt 0:0:4]} 18. Rxd6 {[%emt 0:0:0]} Nec4 {[%emt 0:0:0]} 19. Rxf6 {[%emt 0:0:2]} gxf6 {[%emt 0:0:3]} 20. a5 {[%emt 0:0:2]} Nd7 {[%emt 0:0:19]} 21. Bxc4 {[%emt 0:0:0]} bxc4 {[%emt 0:0:3]} 22. Nf5 {[%emt 0:0:10]
} Ne5 {[%emt 0:0:18]} 23. Nd6 {[%emt 0:0:3]} Rd8 {[%emt 0:0:0]} 24. Rd1 {[%emt 0:1:30]} Rb8 {[%emt 0:0:47]} 25. f4 {[%emt 0:0:1]} Ng4 {[%emt 0:1:11]} 26. e5 {[%emt 0:1:36]} Rxb4 {[%emt 0:0:36]} 27. Bh4 {[%emt 0:0:10]
} Rb2 {[%emt 0:1:25]} 28. Rd2 {[%emt 0:0:39]} Bf5 {[%emt 0:0:0]} 29. h3 {[%emt 0:0:6]} Ne3 {[%emt 0:0:5]} 30. Bxf6 {[%emt 0:0:1]} Rd7 {[%emt 0:0:1]} 31. Re2 {[%emt 0:0:11]} Nd5 {[%emt 0:0:24]} 32. Nxf5 {[%emt 0:0:9]
} Nxc3 {[%emt 0:0:2]} 33. Re3 {[%emt 0:0:1]} Rxc2 {[%emt 0:0:0]} 34. Kh2 {[%emt 0:0:18]} Rd3 {[%emt 0:0:2]} 35. Re1 {[%emt 0:0:19]} Nd5 {[%emt 0:0:1]} 36. Bg5 {[%emt 0:0:37]} Rdd2 {[%emt 0:0:25]} 37. Rg1 {[%emt 0:0:13]
} c3 {[%emt 0:0:1]} 38. Bh6 {[%emt 0:0:10]} Rxg2+ {[%emt 0:0:0]} 39. Rxg2+ {[%emt 0:0:4]} Rxg2+ {[%emt 0:0:2]} 40. Kxg2 {[%emt 0:0:2]
} c2 {[%emt 0:0:3]} 41. Ne7+ {[%emt 0:0:9]} Nxe7 42. f5 Nxf5 {[%emt 0:0:0]} 43. Bf4 {[%emt 0:0:12]} Nd4 {[%emt 0:0:2]} 0-1